fUSD/lending_fUSD_20260522
["ID","MTS","AMOUNT","RATE_DAILY","PERIOD"]
[422779792,1779381863000,-500.0,0.00011999,2]
[422779790,1779381863000,-500.0,0.00011999,2]
[422779786,1779381863000,-500.0,0.00011999,2]
[422779791,1779381863000,-500.0,0.00011999,2]
[422779788,1779381863000,-500.0,0.00011999,2]
[422779787,1779381863000,-500.0,0.00011999,2]
[422779785,1779381863000,-500.0,0.00011999,2]
[422779783,1779381863000,-500.0,0.00011999,2]
[422779784,1779381863000,-500.0,0.00011999,2]
[422779789,1779381863000,-500.0,0.00011999,2]
[422779798,1779381863000,-500.0,0.00011999,2]
[422779799,1779381863000,-500.0,0.00011999,2]
[422779801,1779381863000,-500.0,0.00011999,2]
[422779800,1779381863000,-500.0,0.00011999,2]
[422779815,1779381863000,-500.0,0.00011999,2]
[422779813,1779381863000,-500.0,0.00011999,2]
[422779814,1779381863000,-500.0,0.00011999,2]
[422779811,1779381863000,-500.0,0.00011999,2]
[422779812,1779381863000,-500.0,0.00011999,2]
[422779809,1779381863000,-500.0,0.00011999,2]
[422779810,1779381863000,-500.0,0.00011999,2]
[422779806,1779381863000,-500.0,0.00011999,2]
[422779807,1779381863000,-500.0,0.00011999,2]
[422779805,1779381863000,-500.0,0.00011999,2]
[422779803,1779381863000,-500.0,0.00011999,2]
[422779804,1779381863000,-500.0,0.00011999,2]
[422779802,1779381863000,-500.0,0.00011999,2]
[422779808,1779381863000,-500.0,0.00011999,2]
[422779822,1779381864000,-500.0,0.00011999,2]
[422779827,1779381864000,-500.0,0.00011999,2]
[422779828,1779381864000,-500.0,0.00011999,2]
[422779826,1779381864000,-500.0,0.00011999,2]
[422779825,1779381864000,-500.0,0.00011999,2]
[422779824,1779381864000,-500.0,0.00011999,2]
[422779829,1779381864000,-500.0,0.00011999,2]
[422779821,1779381864000,-500.0,0.00011999,2]
[422779820,1779381864000,-500.0,0.00011999,2]
[422779819,1779381864000,-500.0,0.00011999,2]
[422779816,1779381864000,-500.0,0.00011999,2]
[422779818,1779381864000,-500.0,0.00011999,2]
[422779817,1779381864000,-219.58895167,0.00011999,2]
[422779823,1779381864000,-500.0,0.00011999,2]
[422779831,1779381864000,-500.0,0.00011999,2]
[422779832,1779381864000,-500.0,0.00011999,2]
[422779845,1779381864000,-450.0,0.00011999,2]
[422779830,1779381864000,-500.0,0.00011999,2]
[422779847,1779381864000,-500.0,0.00011999,2]
[422779846,1779381864000,-500.0,0.00011999,2]
[422779842,1779381864000,-500.0,0.00011999,2]
[422779844,1779381864000,-500.0,0.00011999,2]
[422779841,1779381864000,-500.0,0.00011999,2]
[422779839,1779381864000,-500.0,0.00011999,2]
[422779843,1779381864000,-500.0,0.00011999,2]
[422779838,1779381864000,-500.0,0.00011999,2]
[422779836,1779381864000,-500.0,0.00011999,2]
[422779837,1779381864000,-500.0,0.00011999,2]
[422779835,1779381864000,-500.0,0.00011999,2]
[422779834,1779381864000,-500.0,0.00011999,2]
[422779833,1779381864000,-500.0,0.00011999,2]
[422779840,1779381864000,-500.0,0.00011999,2]
[422779851,1779381865000,-500.0,0.00011999,2]
[422779856,1779381865000,-500.0,0.00011999,2]
[422779854,1779381865000,-500.0,0.00011999,2]
[422779855,1779381865000,-500.0,0.00011999,2]
[422779852,1779381865000,-500.0,0.00011999,2]
[422779857,1779381865000,-500.0,0.00011999,2]
[422779850,1779381865000,-500.0,0.00011999,2]
[422779849,1779381865000,-500.0,0.00011999,2]
[422779848,1779381865000,-500.0,0.00011999,2]
[422779859,1779381865000,-500.0,0.00011999,2]
[422779853,1779381865000,-500.0,0.00011999,2]
[422779860,1779381865000,-500.0,0.00011999,2]
[422779861,1779381865000,-441.20171376,0.00011999,2]
[422779862,1779381865000,-409.84529142,0.00011999,2]
[422779872,1779381865000,-156.0,0.00012,2]
[422779871,1779381865000,-156.0,0.00012,2]
[422779858,1779381865000,-500.0,0.00011999,2]
[422779870,1779381865000,-1831.19039369,0.00012,2]
[422779868,1779381865000,-4900486.28152606,0.00012,2]
[422779866,1779381865000,-500.0,0.00011999,2]
[422779869,1779381865000,-2099252.68097953,0.00012,2]
[422779864,1779381865000,-499.99999999,0.00011999,2]
[422779865,1779381865000,-500.0,0.00011999,2]
[422779863,1779381865000,-500.0,0.00011999,2]
[422779867,1779381865000,-264.63342786,0.00011999,2]
[422779884,1779381941000,-290.09993325,0.00012571,2]
[422779890,1779381941000,-150.0,0.000126,2]
[422779889,1779381941000,-150.0,0.000126,2]
[422779894,1779381941000,-189.13,0.00012884,2]
[422779888,1779381941000,-150.0,0.000126,2]
[422779887,1779381941000,-150.0,0.000126,2]
[422779886,1779381941000,-150.0,0.000126,2]
[422779883,1779381941000,-300.0,0.00012538,2]
[422779885,1779381941000,-11880.63203323,0.00012576,2]
[422779875,1779381941000,-189.21530246,0.0001202,2]
[422779880,1779381941000,-215.23956962,0.00012415,2]
[422779881,1779381941000,-1200.0,0.00012514,2]
[422779879,1779381941000,-1418.97,0.00012345,2]
[422779877,1779381941000,-151.31231727,0.0001212,2]
[422779878,1779381941000,-290.09993325,0.00012236,2]
[422779876,1779381941000,-1418.97,0.00012043,2]
[422779873,1779381941000,-646.77472674,0.00011999,2]
[422779874,1779381941000,-200.0,0.00012,2]
[422779893,1779381941000,-1909.93,0.00012858,2]
[422779882,1779381941000,-3878.52,0.00012515,2]
[422779892,1779381941000,-1418.97,0.00012646,2]
[422779891,1779381941000,-150.0,0.000126,2]
[422779896,1779381941000,-1418.97,0.00012947,2]
[422779916,1779381941000,-166.66,0.00013699,2]
[422779915,1779381941000,-200.0,0.00013699,2]
[422779914,1779381941000,-460.88402034,0.00013698,2]
[422779911,1779381941000,-500.0,0.00013698,2]
[422779912,1779381941000,-500.0,0.00013698,2]
[422779909,1779381941000,-500.0,0.00013698,2]
[422779908,1779381941000,-500.0,0.00013698,2]
[422779910,1779381941000,-640.52338063,0.00013698,2]
[422779907,1779381941000,-500.0,0.00013698,2]
[422779906,1779381941000,-500.0,0.00013698,2]
[422779913,1779381941000,-249.5,0.00013698,2]
[422779903,1779381941000,-150.0,0.000133,2]
[422779904,1779381941000,-290.09993325,0.00013578,2]
[422779898,1779381941000,-166.51,0.00013162,2]
[422779900,1779381941000,-187.4,0.00013219,2]
[422779917,1779381941000,-892.0,0.00013765,2]
[422779901,1779381941000,-290.09993325,0.00013242,2]
[422779895,1779381941000,-290.09993325,0.00012907,2]
[422779897,1779381941000,-190.1,0.00013162,2]
[422779899,1779381941000,-159.19,0.00013189,2]
[422779905,1779381941000,-150.0,0.00013697,2]
[422779902,1779381941000,-1418.97,0.00013248,2]
[422779919,1779381942000,-800.0,0.000138,5]
[422779920,1779381942000,-300.0,0.000138,5]
[422779918,1779381942000,-300.0,0.000138,5]
[422779924,1779381942000,-800.0,0.000139,5]
[422779923,1779381942000,-300.0,0.000139,5]
[422779922,1779381942000,-1309.77,0.000138,2]
[422779925,1779381942000,-300.0,0.000139,5]
[422779926,1779381942000,-300.0,0.000139,5]
[422779927,1779381942000,-955.64410926,0.000139,3]
[422779930,1779381942000,-2113.78244042,0.000139,2]
[422779931,1779381942000,-290.09993325,0.00013913,2]
[422779921,1779381942000,-300.0,0.000138,5]
[422779928,1779381942000,-8415.80483141,0.000139,2]
[422779932,1779381942000,-151.0,0.00013997,2]
[422779943,1779381942000,-648.10131506,0.00014,2]
[422779941,1779381942000,-616.95889517,0.00013999,2]
[422779942,1779381942000,-406.9044826,0.00013999,2]
[422779939,1779381942000,-500.0,0.00013999,2]
[422779940,1779381942000,-500.0,0.00013999,2]
[422779938,1779381942000,-500.0,0.00013999,2]
[422779934,1779381942000,-500.0,0.00013999,2]
[422779936,1779381942000,-500.0,0.00013999,2]
[422779935,1779381942000,-500.0,0.00013999,2]
[422779933,1779381942000,-500.0,0.00013999,2]
[422779937,1779381942000,-500.0,0.00013999,2]
[422779929,1779381942000,-164.29813333,0.000139,2]
[422779944,1779381948000,-189.21530245,0.00013899,2]
[422779945,1779381948000,-35156.83173223,0.00014,2]
[422779946,1779382151000,168.94,6.56e-05,2]
[422779947,1779382153000,-300.0,8.999e-05,2]
[422779948,1779382153000,-215.23956962,9.023e-05,2]
[422779949,1779382153000,-14.70686698,9.878e-05,2]
[422779950,1779382231000,-178.29313302,9.878e-05,2]
[422779957,1779382231000,-1281.66,0.00013068,2]
[422779951,1779382231000,-185.29708407,9.878e-05,2]
[422779952,1779382231000,-64.70291593,9.878e-05,2]
[422779954,1779382231000,-291.17,0.00012863,2]
[422779953,1779382231000,-331.47781579,0.00010994,2]
[422779961,1779382231000,-300.0,0.00013199,2]
[422779956,1779382231000,-189.21530246,0.00013,2]
[422779955,1779382231000,-168.94,0.00012863,2]
[422779969,1779382231000,-400.44866296,0.00013698,2]
[422779960,1779382231000,-438.0,0.00013199,2]
[422779959,1779382231000,-1200.0,0.00013198,2]
[422779958,1779382231000,-1800.0,0.000131,4]
[422779962,1779382231000,-3700.0,0.000132,4]
[422779967,1779382231000,-1800.0,0.000136,4]
[422779976,1779382231000,-500.0,0.00013698,2]
[422779966,1779382231000,-9300.0,0.000135,4]
[422779964,1779382231000,-7400.0,0.000134,4]
[422779974,1779382231000,-500.0,0.00013698,2]
[422779979,1779382231000,-500.0,0.00013698,2]
[422779980,1779382231000,-500.0,0.00013698,2]
[422779973,1779382231000,-500.0,0.00013698,2]
[422779977,1779382231000,-500.0,0.00013698,2]
[422779978,1779382231000,-500.0,0.00013698,2]
[422779975,1779382231000,-500.0,0.00013698,2]
[422779971,1779382231000,-500.0,0.00013698,2]
[422779970,1779382231000,-500.0,0.00013698,2]
[422779965,1779382231000,-1147.71,0.00013427,2]
[422779963,1779382231000,-5500.0,0.000133,4]
[422779968,1779382231000,-150.0,0.00013697,2]
[422779972,1779382231000,-500.0,0.00013698,2]
[422779987,1779382232000,-1800.0,0.000138,5]
[422780000,1779382232000,-160.0,0.0001397,2]
[422779995,1779382232000,-390.37271931,0.000139,2]
[422779997,1779382232000,-11954.52942275,0.000139,2]
[422779993,1779382232000,-1623.11679656,0.000139,2]
[422779991,1779382232000,-1814.4355,0.000139,2]
[422779986,1779382232000,-1800.0,0.000137,5]
[422779983,1779382232000,-500.0,0.00013698,2]
[422779992,1779382232000,-9626.76937711,0.000139,2]
[422779989,1779382232000,-1800.0,0.000139,5]
[422779985,1779382232000,-502.35693188,0.00013698,2]
[422779988,1779382232000,-16927.96263627,0.00013868,2]
[422779990,1779382232000,-955.64410926,0.000139,3]
[422779984,1779382232000,-500.0,0.00013698,2]
[422779981,1779382232000,-500.0,0.00013698,2]
[422779982,1779382232000,-500.0,0.00013698,2]
[422780002,1779382232000,-5711.74051288,0.0001399,2]
[422779994,1779382232000,-1781.42258427,0.000139,2]
[422780009,1779382232000,-500.0,0.00013999,2]
[422779999,1779382232000,-16831.60966282,0.000139,2]
[422780070,1779382232000,-1000.0,0.00014,2]
[422780066,1779382232000,-1365.04762,0.00014,2]
[422780076,1779382232000,-742.2918,0.00014,2]
[422780074,1779382232000,-1728.70844309,0.00014,2]
[422780020,1779382232000,-320.02955992,0.00014,2]
[422780018,1779382232000,-35341.6247879,0.00014,2]
[422780016,1779382232000,-42457.20935489,0.00014,2]
[422780068,1779382232000,-860.78968653,0.00014,2]
[422780014,1779382232000,-2640.28648201,0.00014,2]
[422780028,1779382232000,-431.14113427,0.00014,2]
[422780025,1779382232000,-1050.0,0.00014,2]
[422780023,1779382232000,-609.8984744,0.00014,2]
[422780007,1779382232000,-308.84119963,0.00013999,2]
[422780005,1779382232000,-512.9954328,0.00013999,2]
[422780011,1779382232000,-613604.60138734,0.00014,2]
[422780010,1779382232000,-385.2433995,0.00013999,2]
[422780192,1779382238000,-1699.5079028,0.00017808,2]
[422780190,1779382238000,-1699.5079028,0.00017808,2]
[422780179,1779382238000,-1699.5079028,0.00017808,2]
[422780177,1779382238000,-1699.5079028,0.00017808,2]
[422780165,1779382238000,-304.0,0.0001726,2]
[422780164,1779382238000,-1258.67,0.00017,2]
[422780166,1779382238000,-900.0,0.00017288,2]
[422780170,1779382238000,-1699.5079028,0.00017808,2]
[422780175,1779382238000,-1699.5079028,0.00017808,2]
[422780173,1779382238000,-1699.5079028,0.00017808,2]
[422780196,1779382238000,-1699.5079028,0.00017808,2]
[422780168,1779382238000,-736.0,0.00017354,2]
[422780181,1779382238000,-1699.5079028,0.00017808,2]
[422780204,1779382238000,-1699.5079028,0.00017808,2]
[422780188,1779382238000,-1699.5079028,0.00017808,2]
[422780194,1779382238000,-1699.5079028,0.00017808,2]
[422780185,1779382238000,-1699.5079028,0.00017808,2]
[422780183,1779382238000,-1699.5079028,0.00017808,2]
[422780198,1779382238000,-1699.5079028,0.00017808,2]
[422780200,1779382238000,-1699.5079028,0.00017808,2]
[422780202,1779382238000,-1699.5079028,0.00017808,2]
[422780172,1779382238000,-1699.5079028,0.00017808,2]
[422780209,1779382238000,-1699.5079028,0.00017808,2]
[422780208,1779382238000,-1699.5079028,0.00017808,2]
[422780206,1779382238000,-1699.5079028,0.00017808,2]
[422780212,1779382238000,-1699.5079028,0.00017808,2]
[422780214,1779382238000,-1699.5079028,0.00017808,2]
[422780226,1779382238000,-1699.5079028,0.00017808,2]
[422780186,1779382238000,-1699.5079028,0.00017808,2]
[422780162,1779382238000,-169.89,0.00016712,2]
[422780154,1779382238000,-159.19,0.00015073,2]
[422780163,1779382238000,-159.19,0.00016957,2]
[422780222,1779382238000,-1699.5079028,0.00017808,2]
[422780133,1779382238000,-9262043.43822236,0.00014,2]
[422780132,1779382238000,-189.21530245,0.000138,2]
[422780135,1779382238000,-10000000.0,0.00014,2]
[422780146,1779382238000,-500.0,0.00014989,2]
[422780145,1779382238000,-500.0,0.00014989,2]
[422780134,1779382238000,-250.0,0.00014,2]
[422780137,1779382238000,-150.0,0.00014,2]
[422780139,1779382238000,-156.87004692,0.00014,2]
[422780142,1779382238000,-166.66,0.00014384,2]
[422780136,1779382238000,-1258.67,0.00014,2]
[422780144,1779382238000,-255.0,0.0001482,2]
[422780141,1779382238000,-151.47665671,0.00014259,7]
[422780138,1779382238000,-150.0,0.00014,2]
[422780140,1779382238000,-150.0,0.00014259,7]
[422780143,1779382238000,-1281.66,0.00014701,2]
[422780147,1779382238000,-500.0,0.00014989,2]
[422780149,1779382238000,-500.0,0.00014999,2]
[422780160,1779382238000,-230.06,0.00016438,2]
[422780159,1779382238000,-2572.7,0.00016438,2]
[422780151,1779382238000,-500.0,0.00014999,2]
[422780148,1779382238000,-500.0,0.00014989,2]
[422780150,1779382238000,-500.0,0.00014999,2]
[422780153,1779382238000,-500.0,0.00014999,2]
[422780155,1779382238000,-900.0,0.00015918,2]
[422780152,1779382238000,-500.0,0.00014999,2]
[422780158,1779382238000,-1281.66,0.00016334,2]
[422780156,1779382238000,-300.0,0.00016,2]
[422780157,1779382238000,-433.0,0.00016039,2]
[422780161,1779382238000,-274.916363,0.00016488,2]
[422780220,1779382238000,-1699.5079028,0.00017808,2]
[422780345,1779382238000,-1642.85763938,0.00017808,2]
[422780218,1779382238000,-1699.5079028,0.00017808,2]
[422780292,1779382238000,-1699.5079028,0.00017808,2]
[422780294,1779382238000,-1699.5079028,0.00017808,2]
[422780298,1779382238000,-1642.85763938,0.00017808,2]
[422780302,1779382238000,-1642.85763938,0.00017808,2]
[422780296,1779382238000,-1699.5079028,0.00017808,2]
[422780300,1779382238000,-1642.85763938,0.00017808,2]
[422780311,1779382238000,-1642.85763938,0.00017808,2]
[422780306,1779382238000,-1642.85763938,0.00017808,2]
[422780304,1779382238000,-1642.85763938,0.00017808,2]
[422780308,1779382238000,-1642.85763938,0.00017808,2]
[422780313,1779382238000,-1642.85763938,0.00017808,2]
[422780216,1779382238000,-1699.5079028,0.00017808,2]
[422780317,1779382238000,-1642.85763938,0.00017808,2]
[422780327,1779382238000,-1642.85763938,0.00017808,2]
[422780329,1779382238000,-1642.85763938,0.00017808,2]
[422780315,1779382238000,-1642.85763938,0.00017808,2]
[422780332,1779382238000,-1642.85763938,0.00017808,2]
[422780325,1779382238000,-1642.85763938,0.00017808,2]
[422780321,1779382238000,-1642.85763938,0.00017808,2]
[422780334,1779382238000,-1642.85763938,0.00017808,2]
[422780323,1779382238000,-1642.85763938,0.00017808,2]
[422780336,1779382238000,-1642.85763938,0.00017808,2]
[422780338,1779382238000,-1642.85763938,0.00017808,2]
[422780339,1779382238000,-1642.85763938,0.00017808,2]
[422780340,1779382238000,-1642.85763938,0.00017808,2]
[422780341,1779382238000,-1642.85763938,0.00017808,2]
[422780349,1779382238000,-1642.85763938,0.00017808,2]
[422780343,1779382238000,-1642.85763938,0.00017808,2]
[422780347,1779382238000,-1642.85763938,0.00017808,2]
[422780290,1779382238000,-1699.5079028,0.00017808,2]
[422780288,1779382238000,-1699.5079028,0.00017808,2]
[422780319,1779382238000,-1642.85763938,0.00017808,2]
[422780279,1779382238000,-1699.5079028,0.00017808,2]
[422780224,1779382238000,-1699.5079028,0.00017808,2]
[422780285,1779382238000,-1699.5079028,0.00017808,2]
[422780229,1779382238000,-1699.5079028,0.00017808,2]
[422780228,1779382238000,-1699.5079028,0.00017808,2]
[422780231,1779382238000,-1699.5079028,0.00017808,2]
[422780233,1779382238000,-1699.5079028,0.00017808,2]
[422780235,1779382238000,-1699.5079028,0.00017808,2]
[422780237,1779382238000,-1699.5079028,0.00017808,2]
[422780239,1779382238000,-1699.5079028,0.00017808,2]
[422780243,1779382238000,-1699.5079028,0.00017808,2]
[422780247,1779382238000,-1699.5079028,0.00017808,2]
[422780245,1779382238000,-1699.5079028,0.00017808,2]
[422780249,1779382238000,-1699.5079028,0.00017808,2]
[422780255,1779382238000,-1699.5079028,0.00017808,2]
[422780241,1779382238000,-1699.5079028,0.00017808,2]
[422780251,1779382238000,-1699.5079028,0.00017808,2]
[422780283,1779382238000,-1699.5079028,0.00017808,2]
[422780253,1779382238000,-1699.5079028,0.00017808,2]
[422780265,1779382238000,-1699.5079028,0.00017808,2]
[422780277,1779382238000,-1699.5079028,0.00017808,2]
[422780263,1779382238000,-1699.5079028,0.00017808,2]
[422780267,1779382238000,-1699.5079028,0.00017808,2]
[422780275,1779382238000,-1699.5079028,0.00017808,2]
[422780281,1779382238000,-1699.5079028,0.00017808,2]
[422780261,1779382238000,-1699.5079028,0.00017808,2]
[422780271,1779382238000,-1699.5079028,0.00017808,2]
[422780259,1779382238000,-1699.5079028,0.00017808,2]
[422780269,1779382238000,-1699.5079028,0.00017808,2]
[422780257,1779382238000,-1699.5079028,0.00017808,2]
[422780273,1779382238000,-1699.5079028,0.00017808,2]
[422780425,1779382239000,-4541.98233366,0.000198,2]
[422780427,1779382239000,-200.0,0.00019931,2]
[422780423,1779382239000,-1281.66,0.00019601,2]
[422780429,1779382239000,-200.0,0.00019931,2]
[422780421,1779382239000,-4541.98233366,0.000196,2]
[422780415,1779382239000,-4541.98233366,0.000193,2]
[422780417,1779382239000,-3076.30206366,0.0001932,21]
[422780410,1779382239000,-160.93281423,0.00019178,7]
[422780412,1779382239000,-504.73,0.00019178,2]
[422780402,1779382239000,-135152.71062754,0.00019,2]
[422780435,1779382239000,-2000.0,0.00019996,7]
[422780419,1779382239000,-4541.98233366,0.000195,2]
[422780431,1779382239000,-200.0,0.00019931,2]
[422780449,1779382239000,-175.96521261,0.0002,2]
[422780433,1779382239000,-175.53,0.00019931,2]
[422780439,1779382239000,-151.0,0.0002,2]
[422780445,1779382239000,-152.0,0.0002,2]
[422780443,1779382239000,-409.0,0.0002,2]
[422780441,1779382239000,-366.0,0.0002,2]
[422780447,1779382239000,-400.0,0.0002,2]
[422780463,1779382239000,-443.0,0.0002,2]
[422780458,1779382239000,-175.96521262,0.0002,2]
[422780457,1779382239000,-175.96521261,0.0002,2]
[422780465,1779382239000,-674.0,0.00020313,2]
[422780451,1779382239000,-175.96521261,0.0002,2]
[422780404,1779382239000,-4541.98233366,0.000191,2]
[422780437,1779382239000,-540.0,0.0002,2]
[422780406,1779382239000,-5000.0,0.00019101,2]
[422780485,1779382239000,-409.0,0.00021,2]
[422780398,1779382239000,-597.90954568,0.000189,2]
[422780461,1779382239000,-31472.98,0.0002,2]
[422780351,1779382239000,-85383.79172474,0.000179,2]
[422780355,1779382239000,-350.0,0.00018,2]
[422780353,1779382239000,-1281.66,0.00017968,2]
[422780357,1779382239000,-291.17,0.00018009,2]
[422780359,1779382239000,-4541.98233366,0.000181,2]
[422780363,1779382239000,-597.90954568,0.000181,2]
[422780360,1779382239000,-1593.21485106,0.000181,2]
[422780375,1779382239000,-59290.42,0.00018356,2]
[422780365,1779382239000,-252.64087241,0.000182,2]
[422780377,1779382239000,-2572.7,0.0001841,2]
[422780369,1779382239000,-4541.98233366,0.000183,2]
[422780408,1779382239000,-3000.0,0.00019178,2]
[422780380,1779382239000,-1593.21485106,0.000185,2]
[422780371,1779382239000,-1593.21485106,0.000183,2]
[422780367,1779382239000,-151.63068737,0.000182,2]
[422780378,1779382239000,-4541.98233366,0.000185,2]
[422780372,1779382239000,-597.90954568,0.000183,2]
[422780384,1779382239000,-304.0,0.0001863,2]
[422780386,1779382239000,-4541.98233366,0.000187,2]
[422780388,1779382239000,-1593.21485106,0.000187,2]
[422780390,1779382239000,-597.90954568,0.000187,2]
[422780392,1779382239000,-1252.0,0.00018779,2]
[422780394,1779382239000,-4541.98233366,0.000189,2]
[422780396,1779382239000,-1593.21485106,0.000189,2]
[422780400,1779382239000,-1258.67,0.000189,2]
[422780382,1779382239000,-597.90954568,0.000185,2]
[422780467,1779382239000,-5000.0,0.00020333,2]
[422780518,1779382239000,-151.0,0.00021449,2]
[422780454,1779382239000,-175.96521261,0.0002,2]
[422780537,1779382239000,-151.0,0.00021449,2]
[422780533,1779382239000,-151.0,0.00021449,2]
[422780543,1779382239000,-151.0,0.00021449,2]
[422780541,1779382239000,-151.0,0.00021449,2]
[422780534,1779382239000,-151.0,0.00021449,2]
[422780539,1779382239000,-151.0,0.00021449,2]
[422780531,1779382239000,-151.0,0.00021449,2]
[422780546,1779382239000,-151.0,0.00021449,2]
[422780548,1779382239000,-151.0,0.00021449,2]
[422780550,1779382239000,-500.0,0.00021483,2]
[422780552,1779382239000,-500.0,0.00021483,2]
[422780556,1779382239000,-5000.0,0.00021918,2]
[422780535,1779382239000,-163.06401948,0.00021449,2]
[422780560,1779382239000,-1005.15,0.00021918,2]
[422780576,1779382239000,-163.64,0.00021918,2]
[422780578,1779382239000,-2000.0,0.00021996,7]
[422780584,1779382239000,-540.0,0.00022,2]
[422780582,1779382239000,-53696.83522234,0.00022,2]
[422780580,1779382239000,-750.0,0.00022,2]
[422780590,1779382239000,-409.0,0.00022,2]
[422780588,1779382239000,-366.0,0.00022,2]
[422780586,1779382239000,-157.40230589,0.00022,2]
[422780594,1779382239000,-161.0,0.00022,2]
[422780592,1779382239000,-152.0,0.00022,2]
[422780596,1779382239000,-450.0,0.00022,2]
[422780469,1779382239000,-2572.7,0.00020381,2]
[422780558,1779382239000,-3077.12,0.00021918,2]
[422780526,1779382239000,-151.0,0.00021449,2]
[422780554,1779382239000,-24452.85,0.00021806,2]
[422780522,1779382239000,-151.0,0.00021449,2]
[422780529,1779382239000,-151.0,0.00021449,2]
[422780481,1779382239000,-4773.0,0.00021,2]
[422780475,1779382239000,-750.0,0.00021,2]
[422780473,1779382239000,-17226.93,0.00021,2]
[422780477,1779382239000,-540.0,0.00021,2]
[422780483,1779382239000,-366.0,0.00021,2]
[422780600,1779382239000,-201.68822076,0.00022,3]
[422780479,1779382239000,-151.0,0.00021,2]
[422780471,1779382239000,-2783.05,0.00020548,2]
[422780489,1779382239000,-409.26779832,0.00021,2]
[422780496,1779382239000,-5000.0,0.00021233,2]
[422780491,1779382239000,-300.0,0.00021,7]
[422780494,1779382239000,-443.0,0.00021,2]
[422780487,1779382239000,-152.0,0.00021,2]
[422780500,1779382239000,-6467.69,0.0002137,2]
[422780498,1779382239000,-1258.67,0.000213,2]
[422780520,1779382239000,-151.0,0.00021449,2]
[422780512,1779382239000,-151.0,0.00021449,2]
[422780598,1779382239000,-2625.61,0.00022,2]
[422780506,1779382239000,-151.0,0.00021449,2]
[422780508,1779382239000,-151.0,0.00021449,2]
[422780524,1779382239000,-151.0,0.00021449,2]
[422780514,1779382239000,-151.0,0.00021449,2]
[422780510,1779382239000,-151.0,0.00021449,2]
[422780504,1779382239000,-151.0,0.00021449,2]
[422780502,1779382239000,-151.0,0.00021449,2]
[422780516,1779382239000,-151.0,0.00021449,2]
[422780672,1779382240000,-150.0,0.0002339,2]
[422780665,1779382240000,-337.98,0.000231,14]
[422780669,1779382240000,-256.55,0.000233,14]
[422780659,1779382240000,-409.0,0.00023,2]
[422780663,1779382240000,-443.0,0.00023,2]
[422780661,1779382240000,-152.0,0.00023,2]
[422780667,1779382240000,-1258.67,0.000231,7]
[422780652,1779382240000,-750.0,0.00023,2]
[422780655,1779382240000,-540.0,0.00023,2]
[422780650,1779382240000,-17226.93,0.000228,2]
[422780657,1779382240000,-366.0,0.00023,2]
[422780674,1779382240000,-5530.0,0.000234,5]
[422780700,1779382240000,-500.0,0.00024,2]
[422780694,1779382240000,-366.0,0.00024,2]
[422780681,1779382240000,-1769.07842371,0.0002398,2]
[422780690,1779382240000,-750.0,0.00024,2]
[422780683,1779382240000,-2000.0,0.0002399,2]
[422780678,1779382240000,-17226.93,0.000238,2]
[422780692,1779382240000,-540.0,0.00024,2]
[422780688,1779382240000,-2000.0,0.00023996,7]
[422780676,1779382240000,-5000.0,0.0002345,2]
[422780696,1779382240000,-409.0,0.00024,2]
[422780698,1779382240000,-152.0,0.00024,2]
[422780710,1779382240000,-913.62,0.00024174,2]
[422780648,1779382240000,-5530.0,0.000227,3]
[422780685,1779382240000,-472.46218159,0.0002399,2]